[Event "15th Deltalift Open 2018"]
[Site "Halmstad"]
[Date "2018.05.12"]
[Round "8"]
[White "Lindborg, Patrik"]
[Black "Goransson, Martin"]
[Result "1-0"]
[ECO "D15"]
[WhiteElo "2172"]
[BlackElo "2025"]
[Annotator "NA"]
[PlyCount "87"]
[EventDate "2018.??.??"]
[EventType "swiss"]
[EventCountry "SWE"]
[SourceTitle "playchess.com"]
[Source "ChessBase"]
[SourceQuality "1"]
[TimeControl "1800+12"]

1. d4 {[%emt 0:00:00]} d5 {[%emt 0:00:00]} 2. c4 {[%emt 0:00:00]} c6 {[%emt 0:00:00]} 3. Nf3 {[%emt 0:00:00]} Nf6 {[%emt 0:00:00]} 4. Nc3 {[%emt 0:00:00]} a6 {[%emt 0:00:00]} 5. e3 {[%emt 0:00:00]} b5 {[%emt 0:00:00]} 6. b3 {[%emt 0:00:00]} Bg4 {[%emt 0:00:00]} 7. h3 {[%emt 0:00:00]} Bxf3 {[%emt 0:00:00]} 8. Qxf3 {[%emt 0:00:00]} e5 {[%emt 0:00:00]} 9. cxd5 {[%emt 0:00:00] D15: Slav Defence: 4 Nc3 a6 and gambit lines after 4 Nc3 dxc4} (9. dxe5 $11 Bb4 10. Bd2) 9... Bb4 {[%emt 0:00:00] LiveBook: 3 Games} 10. Bd2 {[%emt 0:00:00]} cxd5 $146 {[%emt 0:00:00]} ({Predecessor:} 10... Qa5 11. Nb1 exd4 12. Qf4 Bxd2+ 13. Nxd2 O-O 14. Qxd4 cxd5 15. a4 bxa4 16. Rxa4 Qc7 17. Be2 Nc6 18. Qc3 Qb6 19. O-O {½-½ (19) Deepan Chakkravarthy,J (2468)-Hernandez Carmenates,H (2569) Barcelona 2012}) 11. Rd1 {[%emt 0:00:00]} exd4 {[%emt 0:00:00]} 12. exd4 {[%emt 0:00:00]} O-O {[%emt 0:00:00]} 13. Be2 {[%emt 0:00:00]} Nc6 {[%emt 0:00:00]} 14. Qd3 {[%emt 0:00:00]} Qb6 {[%emt 0:00:00]} 15. O-O {[%emt 0:00:00]} Nxd4 {[%emt 0:00:00]} 16. Bg4 {[%emt 0:00:00]} Ne6 {[%emt 0:05:34]} 17. Nxd5 {[%emt 0:00:00]} Nxd5 {[%emt 0:00:00]} 18. Qxd5 {[%emt 0:00:00]} Rad8 {[%emt 0:02:01]} 19. Be3 {[%emt 0:00:00]} Qa5 {[%emt 0:00:39]} 20. Qe4 {[%emt 0:00:00]} Nc5 {[%emt 0:04:41]} (20... Rde8 $14) 21. Qc6 {[%emt 0:00:00]} Ne6 $2 {[%emt 0:07:04]} (21... f5 $16) 22. Bb6 {[%emt 0:00:00]} (22. Bxe6 $142 Rxd1 23. Rxd1 fxe6 24. Rd7) 22... Qxa2 {[%emt 0:00:00]} 23. Bxd8 {[%emt 0:00:00]} Nxd8 {[%emt 0:00:00]} 24. Qb6 {[%emt 0:02:37]} Qa5 {[%emt 0:05:00]} 25. Qxa5 {[%emt 0:00:30]} Bxa5 {[%emt 0:00:00]} 26. Ra1 {[%emt 0:00:00]} Bc3 {[%emt 0:00:00]} 27. Rxa6 {[%emt 0:00:00]} b4 {[%emt 0:01:21]} 28. Rd1 {[%emt 0:02:27]} Nb7 {[%emt 0:00:00]} 29. Rd5 {[%emt 0:00:00]} g6 {[%emt 0:00:47]} 30. Be2 {[%emt 0:04:02]} Kg7 {[%emt 0:06:01]} 31. Bc4 {[%emt 0:00:41]} Nd8 {[%emt 0:00:44]} 32. Rd7 {[%emt 0:00:37]} h5 {[%emt 0:00:56]} 33. Ra8 {[%emt 0:03:23]} Ne6 {[%emt 0:00:02]} 34. Rxf8 {[%emt 0:00:20]} Kxf8 {[%emt 0:00:00]} 35. Bxe6 {[%emt 0:00:00]} fxe6 {[%emt 0:00:00]} 36. h4 {[%emt 0:00:18]} Bf6 {[%emt 0:00:00]} 37. g3 {[%emt 0:00:00]} Be7 {[%emt 0:00:00]} 38. Kg2 {[%emt 0:00:18]} Kf7 {[%emt 0:00:00]} 39. Kf3 {[%emt 0:00:00]} Kf6 {[%emt 0:00:00]} 40. Ke4 $18 {[%emt 0:00:00]} Bc5 {[%emt 0:00:00]} 41. Rd2 {[%emt 0:03:04]} Ba7 {[%emt 0:00:00]} 42. f3 {[%emt 0:00:00]} g5 {[%emt 0:00:00]} 43. Ra2 {[%emt 0:00:00]} Bc5 {[%emt 0:00:00]} 44. hxg5+ {[%emt 0:00:00]} 1-0

[Event "15th Deltalift Open 2018"]
[Site "Halmstad"]
[Date "2018.05.12"]
[Round "8"]
[White "Ivarsson, Torbjorn"]
[Black "Andersson, Robert"]
[Result "1-0"]
[ECO "A45"]
[WhiteElo "2153"]
[BlackElo "2090"]
[Annotator "NA"]
[PlyCount "79"]
[EventDate "2018.??.??"]
[EventType "swiss"]
[EventCountry "SWE"]
[SourceTitle "playchess.com"]
[Source "ChessBase"]
[SourceQuality "1"]
[TimeControl "1800+12"]

1. d4 {[%emt 0:00:00]} Nf6 {[%emt 0:00:00]} 2. Bf4 {[%emt 0:00:00]} g6 {[%emt 0:00:00]} 3. Nc3 {[%emt 0:00:00]} d5 {[%emt 0:00:00] A45: Trompowsky Attack} 4. e3 {[%emt 0:00:00]} Bg7 {[%emt 0:00:00]} 5. h4 {[%emt 0:00:00]} h5 {[%emt 0:00:00]} 6. Nf3 {[%emt 0:00:00] LiveBook: 20 Games} Ne4 $146 {[%emt 0:00:00]} (6... O-O $11) ({Predecessor:} 6... Bg4 7. Be2 Bxf3 8. Bxf3 c6 9. Qd2 Nbd7 10. O-O-O b5 11. Kb1 {½-½ (34) Aronian,L (2797)-Vachier Lagrave,M (2793) Caleta 2018}) 7. Nxe4 {[%emt 0:00:00]} dxe4 8. Ng5 {[%emt 0:00:00]} c5 {[%emt 0:00:00]} 9. c3 {[%emt 0:00:00]} cxd4 {[%emt 0:00:00]} 10. cxd4 {[%emt 0:00:00]} Qa5+ {[%emt 0:04:10]} 11. Qd2 {[%emt 0:00:00]} Qxd2+ {[%emt 0:00:21]} 12. Kxd2 {[%emt 0:00:00]} Bf5 {[%emt 0:05:19]} 13. Bc4 {[%emt 0:00:00]} O-O {[%emt 0:01:57]} 14. Ke2 {[%emt 0:00:00]} Nd7 {[%emt 0:03:55]} 15. Rhd1 {[%emt 0:00:00]} e5 {[%emt 0:00:00]} 16. dxe5 {[%emt 0:00:00]} Nxe5 {[%emt 0:00:00]} 17. Bxe5 {[%emt 0:00:00]} (17. Bd5 $14) 17... Bxe5 {[%emt 0:00:00]} 18. Rd5 {[%emt 0:00:00]} Bxb2 {[%emt 0:03:36]} 19. Rb1 {[%emt 0:00:00]} Rac8 {[%emt 0:02:10]} 20. Rxb2 {[%emt 0:00:00]} Rxc4 {[%emt 0:00:00]} 21. Rxb7 {[%emt 0:00:00]} Rc2+ {[%emt 0:02:05]} 22. Rd2 $1 {[%emt 0:00:00]} Rxd2+ {[%emt 0:00:00]} 23. Kxd2 {[%emt 0:00:00]} f6 {[%emt 0:00:00]} 24. Nh3 {[%emt 0:00:00]} Rd8+ {[%emt 0:03:00]} 25. Kc2 {[%emt 0:00:00]} Rc8+ {[%emt 0:01:15]} 26. Kb2 {[%emt 0:00:00]} Rd8 {[%emt 0:00:04]} 27. a4 {[%emt 0:00:00]} Bxh3 {[%emt 0:00:27]} 28. gxh3 {[%emt 0:00:00]} Rd2+ {[%emt 0:00:00]} 29. Kc3 {[%emt 0:00:00]} Rxf2 {[%emt 0:00:00]} 30. Rxa7 {[%emt 0:00:00]} Rf3 {[%emt 0:02:56]} 31. Kd4 {[%emt 0:00:00]} Rxh3 {[%emt 0:00:00]} 32. a5 {[%emt 0:00:00]} Rxh4 {[%emt 0:00:08]} 33. a6 {[%emt 0:00:00]} Rh1 {[%emt 0:00:00]} 34. Rb7 {[%emt 0:00:00]} Ra1 {[%emt 0:01:23]} 35. a7 {[%emt 0:00:00]} Ra4+ {[%emt 0:00:00]} 36. Kd5 {[%emt 0:00:00]} f5 {[%emt 0:01:27]} 37. Ke5 {[%emt 0:00:00]} h4 {[%emt 0:01:26]} 38. Kf4 {[%emt 0:00:00]} g5+ {[%emt 0:00:00]} 39. Kxg5 {[%emt 0:00:00]} h3 {[%emt 0:01:25]} 40. Rb8+ {[%emt 0:00:00]} 1-0

[Event "15th Deltalift Open 2018"]
[Site "Halmstad"]
[Date "2018.05.12"]
[Round "8"]
[White "Wallin, Dennis"]
[Black "Lindh, Fredrik"]
[Result "1/2-1/2"]
[ECO "A48"]
[WhiteElo "2136"]
[BlackElo "2296"]
[Annotator "NA"]
[PlyCount "43"]
[EventDate "2018.??.??"]
[EventType "swiss"]
[EventCountry "SWE"]
[SourceTitle "playchess.com"]
[Source "ChessBase"]
[SourceQuality "1"]
[TimeControl "1800+12"]

{[%evp 8,42,14,10,32767,32767,0,32767,8,10,32767,1,38,6,58,36,55,52,32767,62,75,51,73,65,32767,32767,62,32767,32767,32767,32767,65,91,81,32767,89,103]} 1. Nf3 {[%emt 0:00:00]} Nf6 {[%emt 0:00:00]} 2. d4 {[%emt 0:00:00]} g6 {[%emt 0:00:00]} 3. Bg5 {[%emt 0:00:00]} Bg7 {[%emt 0:00:00]} 4. Nbd2 {[%emt 0:00:00]} d5 {[%emt 0:00:00]} 5. e3 {[%emt 0:00:00]} O-O {[%emt 0:00:00]} 6. Be2 {[%emt 0:00:00]} c5 {[%emt 0:00:00]} 7. c3 {[%emt 0:00:00]} b6 {[%emt 0:00:00]} 8. O-O {[%emt 0:00:00]} Bb7 {[%emt 0:00:00]} 9. a4 {[%emt 0:00:00]} Nbd7 {[%emt 0:00:00]} 10. a5 {[%emt 0:00:00] LiveBook: 27 Games} Ne4 {[%emt 0:00:00] D03: 1 d4 d5 2 Nf3 Nf6 3 Bg5, including Torre Attack with early ...d5} (10... h6 11. Bh4 Ne4 12. a6 Bc6 13. Nxe4 dxe4 14. d5 exf3 15. gxf3 Bxd5 16. Qxd5 Nf6 17. Qxd8 Raxd8 18. Rfd1 {1-0 (44) Mastrovasilis,A (2551)-Papp,P (2352) Caleta 2017}) 11. Nxe4 {[%emt 0:00:00]} dxe4 {[%emt 0:00:00]} 12. Nd2 {[%emt 0:00:00]} h6 {[%emt 0:00:00]} 13. Bh4 {[%emt 0:00:00]} cxd4 {[%emt 0:00:00]} 14. cxd4 {[%emt 0:00:00]} Nf6 $146 {[%emt 0:00:00]} ({Predecessor:} 14... bxa5 15. Qa4 Nb6 16. Qxa5 Bd5 17. Rfc1 Qd7 18. Qb4 {1-0 (36) Sosna,J (2411)-Lanc,A (2368) Czechia 2007}) 15. Qb3 {[%emt 0:00:00]} Bd5 {[%emt 0:00:00]} 16. Bc4 {[%emt 0:00:00]} e6 {[%emt 0:00:00]} 17. Bxd5 {[%emt 0:00:00]} Qxd5 {[%emt 0:00:00]} 18. Bxf6 {[%emt 0:00:00]} Bxf6 {[%emt 0:00:00]} 19. axb6 {[%emt 0:00:00]} axb6 {[%emt 0:00:00]} 20. Qc2 {[%emt 0:00:00]} e5 {[%emt 0:13:18]} 21. Nxe4 {[%emt 0:00:00]} Bg7 $16 {[%emt 0:01:33]} 22. Nc3 {[%emt 0:10:00]} 1/2-1/2

[Event "15th Deltalift Open 2018"]
[Site "Halmstad"]
[Date "2018.05.12"]
[Round "8"]
[White "Ask, Josef"]
[Black "Wernberg, Hugo"]
[Result "1-0"]
[ECO "A05"]
[WhiteElo "2135"]
[BlackElo "1977"]
[Annotator "NA"]
[PlyCount "101"]
[EventDate "2018.??.??"]
[EventType "swiss"]
[EventCountry "SWE"]
[SourceTitle "playchess.com"]
[Source "ChessBase"]
[SourceQuality "1"]
[TimeControl "1800+12"]

1. Nf3 {[%emt 0:00:00]} Nf6 {[%emt 0:00:00]} 2. g3 {[%emt 0:00:00]} b6 {[%emt 0:00:00]} 3. Bg2 {[%emt 0:00:00]} Bb7 {[%emt 0:00:00]} 4. c4 {[%emt 0:00:00]} e5 {[%emt 0:00:00] A15: English Opening: 1...Nf6} (4... e6 5. O-O Be7 6. b3 O-O 7. Bb2 d5 8. cxd5 exd5 9. d4 Ne4 10. Nc3 Nxc3 11. Bxc3 a5 12. Ne5 Nd7 13. Nd3 Bd6 14. e3 Qe7 15. Re1 Nf6 16. Qc2 Rfe8 17. Rad1 h5 18. f3 {1-0 (65) Ponomariov,R (2694)-Anton Guijarro,D (2666) Riadh 2017}) 5. d3 {[%emt 0:00:00]} Bb4+ {[%emt 0:00:00]} 6. Bd2 {[%emt 0:00:00]} Bxd2+ {[%emt 0:00:00]} 7. Nbxd2 {[%emt 0:00:00]} d6 {[%emt 0:00:00]} 8. O-O {[%emt 0:00:00]} O-O {[%emt 0:00:00]} 9. b4 {[%emt 0:00:00]} Re8 $146 {[%emt 0:00:00]} ({Predecessor:} 9... Nbd7 10. Qc2 Qe7 11. Nb3 c5 12. bxc5 Nxc5 13. Nxc5 bxc5 {1-0 (53) Iwanesko,A (1760)-Baudon,S (1984) Besancon 2006}) 10. Qb3 {[%emt 0:00:00]} Nbd7 {[%emt 0:00:00]} 11. e4 {[%emt 0:00:00]} a5 {[%emt 0:00:00]} 12. a3 {[%emt 0:00:00]} axb4 {[%emt 0:00:00]} 13. axb4 {[%emt 0:00:00]} Qe7 {[%emt 0:00:00]} 14. Nh4 {[%emt 0:00:00]} Qf8 {[%emt 0:00:00]} 15. Rxa8 {[%emt 0:00:00]} Rxa8 {[%emt 0:00:00]} 16. f4 {[%emt 0:00:00]} Ra7 {[%emt 0:00:00]} 17. fxe5 {[%emt 0:00:00]} dxe5 {[%emt 0:00:00]} 18. Bh3 {[%emt 0:00:00]} Nb8 {[%emt 0:00:00]} 19. Ndf3 {[%emt 0:00:00]} Nc6 {[%emt 0:00:00]} 20. c5 {[%emt 0:00:00]} bxc5 {[%emt 0:00:00]} 21. Nf5 $2 {[%emt 0:00:00]} (21. b5 $11 Nd4 22. Nxd4 cxd4 23. Qc4) 21... Bc8 {[%emt 0:00:00]} 22. Ng5 {[%emt 0:00:00]} Bxf5 {[%emt 0:00:00]} 23. Bxf5 {[%emt 0:00:00]} Nd4 {[%emt 0:00:00]} 24. Qc4 {[%emt 0:00:00]} h6 {[%emt 0:00:00] [#]} 25. Nxf7 $1 {[%emt 0:00:00]} Nxf5 {[%emt 0:00:00]} 26. Nxe5+ {[%emt 0:00:00]} Kh7 {[%emt 0:00:00]} 27. Rxf5 {[%emt 0:00:00]} cxb4 {[%emt 0:00:00] [#]} 28. Nc6 {[%emt 0:00:00]} ({Better is} 28. Nd7 $1 $16 {[%cal Rd7f8]} Qg8 29. Nxf6+ gxf6 30. Qxb4) 28... Ra1+ {[%emt 0:00:00]} 29. Kg2 {[%emt 0:00:00]} Qd6 {[%emt 0:00:00]} 30. Nxb4 {[%emt 0:00:00]} Ng4 {[%emt 0:05:19]} 31. Qc5 {[%emt 0:00:00]} Ne3+ {[%emt 0:01:51]} (31... Rb1 $11 {keeps the balance.} 32. Qxd6 cxd6) 32. Qxe3 {[%emt 0:00:00]} Qxb4 {[%emt 0:00:00]} 33. Rf2 {[%emt 0:00:00]} Qd6 {[%emt 0:02:51]} 34. e5 {[%emt 0:00:00]} Qd5+ {[%emt 0:00:29]} 35. Qe4+ {[%emt 0:00:00]} Qxe4+ {[%emt 0:00:10]} 36. dxe4 {[%emt 0:00:00]} Ra8 {[%emt 0:01:10]} 37. Rc2 {[%emt 0:00:00]} Rc8 {[%emt 0:00:03]} 38. Rc6 {[%emt 0:00:00]} Kg8 {[%emt 0:00:35]} 39. Kf3 {[%emt 0:00:00]} Kf7 {[%emt 0:01:29]} 40. Kf4 {[%emt 0:00:00]} Ke7 {[%emt 0:04:11]} 41. e6 {[%emt 0:00:00]} Kf6 {[%emt 0:01:37]} 42. h4 {[%emt 0:00:00]} Rf8 {[%emt 0:12:39]} 43. e5+ {[%emt 0:00:00]} Kg6+ {[%emt 0:03:02]} 44. Ke4 {[%emt 0:00:00]} Rc8 {[%emt 0:00:50]} 45. g4 {[%emt 0:00:00]} h5 {[%emt 0:00:00]} 46. g5 $18 {[%emt 0:00:00]} (46. gxh5+ $142 Kxh5 47. e7) 46... Re8 {[%emt 0:00:00]} 47. e7+ {[%emt 0:00:00]} Kf7 {[%emt 0:00:00]} 48. Rxc7 {[%emt 0:00:00]} g6 {[%emt 0:00:00]} 49. Kd5 {[%emt 0:00:00]} Rxe7 {[%emt 0:00:00]} 50. e6+ {[%emt 0:00:00]} Kf8 {[%emt 0:00:00]} 51. Rxe7 {[%emt 0:00:00]} 1-0

[Event "15th Deltalift Open 2018"]
[Site "Halmstad"]
[Date "2018.05.12"]
[Round "8"]
[White "Fransson, Patrick"]
[Black "Wahlstrom, Lennart"]
[Result "0-1"]
[ECO "D00"]
[WhiteElo "2129"]
[BlackElo "2200"]
[Annotator "NA"]
[PlyCount "90"]
[EventDate "2018.??.??"]
[EventType "swiss"]
[EventCountry "SWE"]
[SourceTitle "playchess.com"]
[Source "ChessBase"]
[SourceQuality "1"]
[TimeControl "1800+12"]

{[%evp 8,86,-12,-54,-37,-46,-40,-46,-37,-45,-22,-51,-43,-49,-31,-18,-20,-61,-37,-52,32767,32767,32767,-97,-37,-161,-34,32767,32767,-128,-166,-135,32767,-180,-92,32767,32767,32767,-258,-249,32767,32767,-345,-331,32767,-201,-253,32767,-358,-356,-256,32767,32767,-223,-185,32767,32767,-207,32767,32767,-205,32767,32767,32767,-176,32767,32767,32767,32767,32767,32767,32767,32767,32767,32767,32767,-29988,-29989,-29990,-29990,-29991]} 1. d4 {[%emt 0:00:00]} d5 {[%emt 0:00:00]} 2. Bg5 {[%emt 0:00:00]} h6 {[%emt 0:00:00]} 3. Bf4 {[%emt 0:00:00]} c5 {[%emt 0:00:00]} 4. dxc5 {[%emt 0:00:00]} e6 {[%emt 0:00:00]} 5. c3 {[%emt 0:00:00]} Bxc5 {[%emt 0:00:00]} 6. e3 {[%emt 0:00:00]} Nf6 {[%emt 0:00:00]} 7. Nd2 {[%emt 0:00:00]} Nc6 {[%emt 0:00:00]} 8. Ngf3 {[%emt 0:00:00]} O-O {[%emt 0:00:00]} 9. h3 {[%emt 0:00:00]} Re8 {[%emt 0:00:00]} 10. Bb5 {[%emt 0:00:00]} Bd6 {[%emt 0:00:00]} 11. Bxd6 {[%emt 0:00:00]} Qxd6 {[%emt 0:00:00]} 12. Qe2 {[%emt 0:00:00]} a6 {[%emt 0:00:00]} 13. Ba4 {[%emt 0:00:00]} b5 {[%emt 0:00:00]} 14. Bc2 {[%emt 0:00:00]} e5 {[%emt 0:00:00]} 15. Rd1 {[%emt 0:00:00]} ({Better is} 15. O-O $15) 15... Qc7 {[%emt 0:00:00]} 16. Nb3 {[%emt 0:00:00] [#]} (16. O-O $15) 16... b4 {[%emt 0:00:28]} ({Better is} 16... a5 $1 $17 17. e4 dxe4 18. Bxe4 Be6) 17. cxb4 {[%emt 0:09:46]} Nxb4 {[%emt 0:00:00]} 18. Rc1 {[%emt 0:00:03] [#]} Qb6 $1 {[%emt 0:00:35]} 19. Bb1 {[%emt 0:03:33]} a5 {[%emt 0:04:10]} 20. Nc5 {[%emt 0:00:46] [#]} Na6 {[%emt 0:04:01]} ({Black should try} 20... Ne4 $1 $19 {[%cal Re4c5][%mdl 512]} 21. Nxe4 (21. Bxe4 dxe4) 21... Ba6 22. Nf6+ Qxf6) 21. Nb3 {[%emt 0:04:48]} a4 {[%emt 0:01:01]} 22. Nbd2 {[%emt 0:01:28]} Qxb2 {[%emt 0:01:05]} 23. O-O {[%emt 0:02:27]} Nb4 {[%emt 0:05:39]} 24. Qd1 {[%emt 0:03:40]} Ba6 {[%emt 0:02:53]} 25. Re1 {[%emt 0:00:29]} Nd3 {[%emt 0:05:24]} 26. Bxd3 {[%emt 0:02:04]} Bxd3 {[%emt 0:00:00]} 27. Ra1 {[%emt 0:00:29]} Rec8 {[%emt 0:03:52]} 28. Nf1 {[%emt 0:01:01]} Be4 {[%emt 0:01:01]} 29. Re2 {[%emt 0:00:37]} Bxf3 30. gxf3 {[%emt 0:00:00]} Qb4 {[%emt 0:00:32]} 31. Rc1 {[%emt 0:01:32]} d4 {[%emt 0:00:57]} 32. Ng3 {[%emt 0:01:02]} Rxc1 {[%emt 0:00:56]} 33. Qxc1 {[%emt 0:00:00]} d3 {[%emt 0:00:00]} 34. Rd2 {[%emt 0:00:00]} Rd8 {[%emt 0:00:05]} 35. Kg2 {[%emt 0:02:15]} g6 {[%emt 0:00:53]} 36. e4 {[%emt 0:00:14]} Kg7 {[%emt 0:00:10]} 37. Nf1 {[%emt 0:00:04]} Nh5 {[%emt 0:00:04]} 38. Ne3 {[%emt 0:00:06]} Nf4+ {[%emt 0:00:00]} 39. Kh2 {[%emt 0:00:18]} Rc8 {[%emt 0:01:20]} 40. Qxc8 {[%emt 0:00:35]} Qxd2 {[%emt 0:00:00]} 41. Ng4 {[%emt 0:00:00]} h5 {[%emt 0:00:00]} 42. Qc5 {[%emt 0:00:00]} hxg4 {[%emt 0:00:00]} 43. Qxe5+ {[%emt 0:00:00]} Kh7 {[%emt 0:00:00]} 44. Kg3 {[%emt 0:00:00]} Nh5+ {[%emt 0:00:00]} 45. Kh4 {[%emt 0:00:00]} Qxf2+ {[%emt 0:00:00]} 0-1

[Event "15th Deltalift Open 2018"]
[Site "Halmstad"]
[Date "2018.05.12"]
[Round "8"]
[White "Subramanian, Aditya"]
[Black "Haraldsson, Leif"]
[Result "1-0"]
[ECO "A85"]
[WhiteElo "2123"]
[BlackElo "1941"]
[Annotator "NA"]
[PlyCount "113"]
[EventDate "2018.??.??"]
[EventType "swiss"]
[EventCountry "SWE"]
[SourceTitle "playchess.com"]
[Source "ChessBase"]
[SourceQuality "1"]
[TimeControl "1800+12"]

1. c4 {[%emt 0:00:00]} f5 {[%emt 0:00:00]} 2. d4 {[%emt 0:00:00]} Nf6 {[%emt 0:00:00]} 3. Nc3 {[%emt 0:00:00]} g6 {[%emt 0:00:00]} 4. e3 {[%emt 0:00:00]} Bg7 {[%emt 0:00:00] LiveBook: 18 Games} 5. b4 {[%emt 0:00:00]} c6 {[%emt 0:00:00]} 6. Bb2 {[%emt 0:00:00]} O-O {[%emt 0:00:00]} 7. Nf3 {[%emt 0:00:00]} e6 8. c5 {[%emt 0:00:00]} d5 {[%emt 0:00:00]} 9. cxd6 {[%emt 0:00:00]} Qxd6 {[%emt 0:00:00]} 10. Qb3 {[%emt 0:00:00]} Re8 {[%emt 0:00:00]} 11. Be2 {[%emt 0:00:00]} Nbd7 {[%emt 0:00:00]} 12. O-O {[%emt 0:00:00]} Nd5 13. b5 {[%emt 0:00:00]} Nxc3 {[%emt 0:00:00]} 14. Bxc3 {[%emt 0:00:00]} c5 {[%emt 0:00:00]} 15. Rad1 {[%emt 0:00:00]} Qe7 16. Ne5 Nxe5 {[%emt 0:00:00]} 17. dxe5 {[%emt 0:00:00]} Qg5 {[%emt 0:00:00]} 18. Qa4 {[%emt 0:00:00]} Rf8 {[%emt 0:00:00]} 19. g3 {[%emt 0:00:00]} Qe7 {[%emt 0:00:00]} 20. Rd6 {[%emt 0:00:00]} g5 {[%emt 0:00:00]} 21. Bf3 {[%emt 0:00:00]} f4 {[%emt 0:00:00]} 22. Qe4 {[%emt 0:04:44]} ({Don't take} 22. gxf4 $6 gxf4 23. exf4 Bh6 $16) 22... fxg3 {[%emt 0:00:00]} 23. hxg3 {[%emt 0:00:03]} Rf7 {[%emt 0:01:16]} 24. Bh5 {[%emt 0:02:06]} Rf5 {[%emt 0:01:33]} 25. Rfd1 {[%emt 0:00:33]} Rb8 {[%emt 0:00:49]} 26. Bg4 {[%emt 0:02:25]} Rf8 {[%emt 0:01:45]} 27. Qc4 {[%emt 0:00:00]} b6 {[%emt 0:01:04]} 28. Bxe6+ {[%emt 0:00:04]} Bxe6 {[%emt 0:01:15]} 29. Rxe6 {[%emt 0:00:00]} Qf7 {[%emt 0:00:04]} 30. Be1 {[%emt 0:04:46]} Rbe8 {[%emt 0:07:22]} 31. Rdd6 {[%emt 0:00:44]} Bxe5 {[%emt 0:00:25]} 32. Rc6 {[%emt 0:00:00]} Rxe6 {[%emt 0:00:02]} 33. Rxe6 {[%emt 0:01:30]} Kg7 {[%emt 0:05:10]} 34. Qg4 {[%emt 0:01:48]} Bf6 {[%emt 0:02:17]} 35. a4 {[%emt 0:03:11]} h5 {[%emt 0:02:40]} 36. Qf5 {[%emt 0:00:34]} Qg6 {[%emt 0:02:14]} 37. Qxg6+ {[%emt 0:00:38]} Kxg6 {[%emt 0:00:00]} 38. a5 {[%emt 0:01:20]} Kf5 {[%emt 0:02:31]} 39. Rc6 {[%emt 0:00:00]} Rb8 {[%emt 0:04:52]} 40. e4+ {[%emt 0:01:04]} Kxe4 {[%emt 0:01:25]} 41. Rxf6 {[%emt 0:00:00]} bxa5 {[%emt 0:00:12]} 42. Ra6 {[%emt 0:00:35]} Rxb5 {[%emt 0:00:00]} 43. Rxa7 {[%emt 0:00:00]} Kf3 {[%emt 0:00:00]} 44. Rf7+ {[%emt 0:00:00]} Ke2 {[%emt 0:00:00]} 45. Re7+ {[%emt 0:00:00]} Kd1 {[%emt 0:00:00] [#]} 46. Kf1 $1 {[%emt 0:00:00]} Kc2 {[%emt 0:00:00]} 47. Ra7 {[%emt 0:00:00]} Kd3 {[%emt 0:00:00]} 48. Bxa5 {[%emt 0:00:00]} c4 {[%emt 0:00:00]} 49. Rd7+ {[%emt 0:00:00]} Ke4 {[%emt 0:00:00]} 50. Bd2 {[%emt 0:00:00]} Kf3 {[%emt 0:00:00]} 51. Rf7+ {[%emt 0:00:00]} Ke4 {[%emt 0:00:00]} 52. Ke2 {[%emt 0:00:00]} g4 {[%emt 0:00:00]} 53. Re7+ {[%emt 0:00:00]} Kf5 {[%emt 0:00:00]} 54. Rc7 {[%emt 0:00:00]} Re5+ {[%emt 0:00:00]} 55. Be3 {[%emt 0:00:00]} h4 {[%emt 0:00:00]} 56. gxh4 $18 {[%emt 0:00:00]} Kg6 {[%emt 0:00:00]} 57. Rc6+ {[%emt 0:00:00]} 1-0

[Event "15th Deltalift Open 2018"]
[Site "Halmstad"]
[Date "2018.05.12"]
[Round "8"]
[White "Berggren Torell, Harald"]
[Black "Lindhe, Magnus"]
[Result "0-1"]
[ECO "B35"]
[WhiteElo "2114"]
[BlackElo "2170"]
[Annotator "NA"]
[PlyCount "48"]
[EventDate "2018.??.??"]
[EventType "swiss"]
[EventCountry "SWE"]
[SourceTitle "playchess.com"]
[Source "ChessBase"]
[SourceQuality "1"]
[TimeControl "1800+12"]

1. e4 {[%emt 0:00:00]} c5 {[%emt 0:00:00]} 2. Nf3 {[%emt 0:00:00]} Nc6 {[%emt 0:00:00]} 3. Nc3 {[%emt 0:00:00]} g6 {[%emt 0:00:00]} 4. d4 {[%emt 0:00:00]} cxd4 {[%emt 0:00:00] LiveBook: 1737 Games} 5. Nxd4 {[%emt 0:00:00]} Bg7 {[%emt 0:00:00]} 6. Be3 {[%emt 0:00:00]} Nf6 {[%emt 0:00:00]} 7. Bc4 {[%emt 0:00:00]} O-O {[%emt 0:00:00]} 8. Bb3 {[%emt 0:00:00]} Qb6 {[%emt 0:00:00] B35: Sicilian: Accelerated Dragon with 5 Nc3: main line} (8... Re8 9. f3 e6 10. f4 d6 11. Ndb5 Bf8 12. Qf3 a6 13. Nd4 Na5 14. O-O b5 15. f5 exf5 16. exf5 {½-½ (39) Navara,D (2745)-Mamedov,R (2704) Shamkir 2018}) 9. Ne6 {[%emt 0:00:00]} Qxe3+ $146 {[%emt 0:00:00]} (9... Qa5 $16 10. Nxf8 Nxe4) ({Predecessor:} 9... Qb4 10. a3 Qa5 11. Nxg7 Kxg7 12. Qd2 Ng4 13. O-O-O Nxe3 14. Qxe3 d6 15. h4 Qc5 16. Qd2 Ne5 17. f3 a5 18. h5 Rh8 19. hxg6 hxg6 20. Rxh8 Kxh8 21. Qh6+ Kg8 22. Rh1 {1-0 (22) Mueller,T (1458)-Kneip,J (986) Cuxhaven 2005}) 10. fxe3 {[%emt 0:00:00]} dxe6 {[%emt 0:00:00]} 11. Qf3 {[%emt 0:00:00]} a6 {[%emt 0:00:00]} 12. a4 {[%emt 0:00:00]} Nd7 {[%emt 0:00:00]} 13. h4 {[%emt 0:00:00]} h6 {[%emt 0:00:00]} 14. a5 {[%emt 0:00:00]} Nc5 {[%emt 0:00:00]} 15. O-O {[%emt 0:00:00]} Ne5 {[%emt 0:00:00]} 16. Qf4 {[%emt 0:01:42]} Bd7 {[%emt 0:00:00]} 17. Rfd1 {[%emt 0:01:45]} (17. h5 $142) 17... Rac8 {[%emt 0:00:00] [#]} 18. Na4 {[%emt 0:01:35]} ({Better is} 18. h5 $1 $16) 18... Bxa4 {[%emt 0:00:00]} 19. Bxa4 {[%emt 0:03:28]} h5 {[%emt 0:00:52]} 20. c3 {[%emt 0:08:19]} Ned3 {[%emt 0:03:37]} 21. Rxd3 {[%emt 0:00:00]} Nxd3 {[%emt 0:00:00]} 22. Qf1 {[%emt 0:01:58]} Nxb2 {[%emt 0:00:39]} 23. Bd7 {[%emt 0:00:02]} Rxc3 $19 {[%emt 0:03:12]} 24. Rb1 {[%emt 0:00:05]} Rc7 {[%emt 0:00:27]} 0-1